{"text_format":"1","workbook":"xlsx","n_sheets":3,"sheets":["Sheet1","Data","Dictionary"],"not_rendered":{"charts":0,"images":2,"macros":1,"external_links":1,"defined_names":2,"comments":1,"pivot_tables":0},"unopened":[],"bounds":{"document_bytes":16777216,"sheet_cells":100000,"rows_first":2000,"rows_last":500,"rows_between":2000,"halvings":0,"cell_chars":16384,"cell_head_chars":4096},"cells_cut":0,"cells_raw":0,"read":"whole","date_system":"1900"}

{"sheet":"Sheet1","index":0,"n_rows":69,"n_cols":15,"rows_kept":69,"cut":false,"hidden":false,"merged":[[68,1,69,15],[3,3,3,14],[5,3,5,14],[5,1,5,2],[38,2,39,3],[45,5,45,7],[64,12,64,13],[52,12,52,13],[53,12,53,13],[54,12,54,13],[0,13,0,14],[1,13,1,14],[2,1,2,14],[1,2,1,12],[43,5,43,8],[23,5,23,7],[3,1,3,2],[26,5,26,10]]}
[null,null,null,null,null,null,null,null,null,null,null,null,null,{"$f":"NOW()","v":"2019-04-09T14:38:50.340"}]
[null,null,{"$f":"INDEX(Dictionary!$1:$1048576,1,1+INDEX(Data!$T:$T,MATCH(Sheet1!$N$2,Data!$R:$R,0)))","v":"Heat recovery system quotation request"},null,null,null,null,null,null,null,null,null,null,"[EN]"]
[null,{"$f":"INDEX(Dictionary!$1:$1048576,2,1+INDEX(Data!$T:$T,MATCH(Sheet1!$N$2,Data!$R:$R,0)))","v":"(please sent filled questionnaire to your regional sales manager)"}]
[null,{"$f":"INDEX(Dictionary!$1:$1048576,3,1+INDEX(Data!$T:$T,MATCH(Sheet1!$N$2,Data!$R:$R,0)))","v":"Project name: "},null,{"$f":"INDEX(Dictionary!$1:$1048576,5,1+INDEX(Data!$T:$T,MATCH(Sheet1!$N$2,Data!$R:$R,0)))","v":"n/a"}]
[]
[null,{"$f":"INDEX(Dictionary!$1:$1048576,4,1+INDEX(Data!$T:$T,MATCH(Sheet1!$N$2,Data!$R:$R,0)))","v":"Customer: "},null,{"$f":"INDEX(Dictionary!$1:$1048576,5,1+INDEX(Data!$T:$T,MATCH(Sheet1!$N$2,Data!$R:$R,0)))","v":"n/a"}]
[]
[null,{"$f":"INDEX(Dictionary!$1:$1048576,6,1+INDEX(Data!$T:$T,MATCH(Sheet1!$N$2,Data!$R:$R,0)))","v":"Design priority:"},null,null,null,{"$f":"INDEX(Dictionary!$1:$1048576,8,1+INDEX(Data!$T:$T,MATCH(Sheet1!$N$2,Data!$R:$R,0)))","v":"Price"},null,null,{"$f":"INDEX(Dictionary!$1:$1048576,12,1+INDEX(Data!$T:$T,MATCH(Sheet1!$N$2,Data!$R:$R,0)))","v":"Efficiency (recover as much heat as possible)"}]
[]
[null,{"$f":"INDEX(Dictionary!$1:$1048576,7,1+INDEX(Data!$T:$T,MATCH(Sheet1!$N$2,Data!$R:$R,0)))","v":"Application:"},null,null,null,{"$f":"INDEX(Dictionary!$1:$1048576,9,1+INDEX(Data!$T:$T,MATCH(Sheet1!$N$2,Data!$R:$R,0)))","v":"Domestic water heating "}]
[null,null,null,null,null,{"$f":"INDEX(Dictionary!$1:$1048576,10,1+INDEX(Data!$T:$T,MATCH(Sheet1!$N$2,Data!$R:$R,0)))","v":"Heating (technical) water heating"}]
[null,null,null,null,null,{"$f":"INDEX(Dictionary!$1:$1048576,11,1+INDEX(Data!$T:$T,MATCH(Sheet1!$N$2,Data!$R:$R,0)))","v":"Domestic and heating water heating (combi systems)"}]
[]
[null,{"$f":"INDEX(Dictionary!$1:$1048576,13,1+INDEX(Data!$T:$T,MATCH(Sheet1!$N$2,Data!$R:$R,0)))","v":"Design conditions"}]
[]
[null,null,{"$f":"INDEX(Dictionary!$1:$1048576,14,1+INDEX(Data!$T:$T,MATCH(Sheet1!$N$2,Data!$R:$R,0)))","v":"Restrictions for installation (max.):"},null,{"$f":"INDEX(Dictionary!$1:$1048576,17,1+INDEX(Data!$T:$T,MATCH(Sheet1!$N$2,Data!$R:$R,0)))","v":"L"},null,{"$f":"INDEX(Dictionary!$1:$1048576,18,1+INDEX(Data!$T:$T,MATCH(Sheet1!$N$2,Data!$R:$R,0)))","v":"mm      x"},{"$f":"INDEX(Dictionary!$1:$1048576,19,1+INDEX(Data!$T:$T,MATCH(Sheet1!$N$2,Data!$R:$R,0)))","v":"W"},null,{"$f":"INDEX(Dictionary!$1:$1048576,18,1+INDEX(Data!$T:$T,MATCH(Sheet1!$N$2,Data!$R:$R,0)))","v":"mm      x"},{"$f":"INDEX(Dictionary!$1:$1048576,20,1+INDEX(Data!$T:$T,MATCH(Sheet1!$N$2,Data!$R:$R,0)))","v":"H"},null,{"$f":"INDEX(Dictionary!$1:$1048576,118,1+INDEX(Data!$T:$T,MATCH(Sheet1!$N$2,Data!$R:$R,0)))","v":"mm"}]
[null,null,{"$f":"INDEX(Dictionary!$1:$1048576,15,1+INDEX(Data!$T:$T,MATCH(Sheet1!$N$2,Data!$R:$R,0)))","v":"Installation"},null,null,{"$f":"INDEX(Dictionary!$1:$1048576,21,1+INDEX(Data!$T:$T,MATCH(Sheet1!$N$2,Data!$R:$R,0)))","v":"indoors"},null,null,{"$f":"INDEX(Dictionary!$1:$1048576,23,1+INDEX(Data!$T:$T,MATCH(Sheet1!$N$2,Data!$R:$R,0)))","v":"outdoors"}]
[null,null,{"$f":"INDEX(Dictionary!$1:$1048576,16,1+INDEX(Data!$T:$T,MATCH(Sheet1!$N$2,Data!$R:$R,0)))","v":"Position"},null,null,{"$f":"INDEX(Dictionary!$1:$1048576,22,1+INDEX(Data!$T:$T,MATCH(Sheet1!$N$2,Data!$R:$R,0)))","v":"vertical"},null,null,{"$f":"INDEX(Dictionary!$1:$1048576,24,1+INDEX(Data!$T:$T,MATCH(Sheet1!$N$2,Data!$R:$R,0)))","v":"horizontal"}]
[]
[null,{"$f":"INDEX(Dictionary!$1:$1048576,25,1+INDEX(Data!$T:$T,MATCH(Sheet1!$N$2,Data!$R:$R,0)))","v":"Tank"}]
[]
[null,null,{"$f":"INDEX(Dictionary!$1:$1048576,26,1+INDEX(Data!$T:$T,MATCH(Sheet1!$N$2,Data!$R:$R,0)))","v":"Approx. hot water consumption"},null,null,{"$f":"INDEX(Dictionary!$1:$1048576,5,1+INDEX(Data!$T:$T,MATCH(Sheet1!$N$2,Data!$R:$R,0)))","v":"n/a"},{"$f":"INDEX(Dictionary!$1:$1048576,34,1+INDEX(Data!$T:$T,MATCH(Sheet1!$N$2,Data!$R:$R,0)))","v":"ltr./day"}]
[null,null,{"$f":"INDEX(Dictionary!$1:$1048576,27,1+INDEX(Data!$T:$T,MATCH(Sheet1!$N$2,Data!$R:$R,0)))","v":"Peak consumption of hot water"},null,null,{"$f":"INDEX(Dictionary!$1:$1048576,5,1+INDEX(Data!$T:$T,MATCH(Sheet1!$N$2,Data!$R:$R,0)))","v":"n/a"},{"$f":"INDEX(Dictionary!$1:$1048576,35,1+INDEX(Data!$T:$T,MATCH(Sheet1!$N$2,Data!$R:$R,0)))","v":"ltr./hour"}]
[null,null,{"$f":"INDEX(Dictionary!$1:$1048576,28,1+INDEX(Data!$T:$T,MATCH(Sheet1!$N$2,Data!$R:$R,0)))","v":"Fluid (%)"},null,null,"<select>",null,null,100,{"$f":"INDEX(Dictionary!$1:$1048576,36,1+INDEX(Data!$T:$T,MATCH(Sheet1!$N$2,Data!$R:$R,0)))","v":"%"}]
[null,null,{"$f":"INDEX(Dictionary!$1:$1048576,29,1+INDEX(Data!$T:$T,MATCH(Sheet1!$N$2,Data!$R:$R,0)))","v":"Fluid temperatures"},null,{"$f":"INDEX(Dictionary!$1:$1048576,38,1+INDEX(Data!$T:$T,MATCH(Sheet1!$N$2,Data!$R:$R,0)))","v":"in:"},{"$f":"INDEX(Dictionary!$1:$1048576,5,1+INDEX(Data!$T:$T,MATCH(Sheet1!$N$2,Data!$R:$R,0)))","v":"n/a"},{"$f":"INDEX(Dictionary!$1:$1048576,37,1+INDEX(Data!$T:$T,MATCH(Sheet1!$N$2,Data!$R:$R,0)))","v":"°C"},{"$f":"INDEX(Dictionary!$1:$1048576,39,1+INDEX(Data!$T:$T,MATCH(Sheet1!$N$2,Data!$R:$R,0)))","v":"out:"},{"$f":"INDEX(Dictionary!$1:$1048576,5,1+INDEX(Data!$T:$T,MATCH(Sheet1!$N$2,Data!$R:$R,0)))","v":"n/a"},{"$f":"INDEX(Dictionary!$1:$1048576,37,1+INDEX(Data!$T:$T,MATCH(Sheet1!$N$2,Data!$R:$R,0)))","v":"°C"}]
[null,null,{"$f":"INDEX(Dictionary!$1:$1048576,30,1+INDEX(Data!$T:$T,MATCH(Sheet1!$N$2,Data!$R:$R,0)))","v":"Buffer tank volume"},null,null,"<select>",{"$f":"INDEX(Dictionary!$1:$1048576,40,1+INDEX(Data!$T:$T,MATCH(Sheet1!$N$2,Data!$R:$R,0)))","v":"ltr."}]
[null,null,{"$f":"INDEX(Dictionary!$1:$1048576,31,1+INDEX(Data!$T:$T,MATCH(Sheet1!$N$2,Data!$R:$R,0)))","v":"Material"},null,null,"S235JRG2 (1.0038) carbon steel outside painted "]
[null,null,{"$f":"INDEX(Dictionary!$1:$1048576,32,1+INDEX(Data!$T:$T,MATCH(Sheet1!$N$2,Data!$R:$R,0)))","v":"Max. working pressure (Pmax.)"},null,null,{"$f":"INDEX(Dictionary!$1:$1048576,41,1+INDEX(Data!$T:$T,MATCH(Sheet1!$N$2,Data!$R:$R,0)))","v":"6 bar"},null,null,{"$f":"INDEX(Dictionary!$1:$1048576,43,1+INDEX(Data!$T:$T,MATCH(Sheet1!$N$2,Data!$R:$R,0)))","v":"10 bar"}]
[null,null,{"$f":"INDEX(Dictionary!$1:$1048576,33,1+INDEX(Data!$T:$T,MATCH(Sheet1!$N$2,Data!$R:$R,0)))","v":"Insulation"},null,null,{"$f":"INDEX(Dictionary!$1:$1048576,42,1+INDEX(Data!$T:$T,MATCH(Sheet1!$N$2,Data!$R:$R,0)))","v":"None"},null,null,{"$f":"INDEX(Dictionary!$1:$1048576,44,1+INDEX(Data!$T:$T,MATCH(Sheet1!$N$2,Data!$R:$R,0)))","v":"100 mm soft PU foam covered with PVC jacket"}]
[]
[null,{"$f":"INDEX(Dictionary!$1:$1048576,45,1+INDEX(Data!$T:$T,MATCH(Sheet1!$N$2,Data!$R:$R,0)))","v":"Refrigeration circuit"}]
[]
[null,null,{"$f":"INDEX(Dictionary!$1:$1048576,46,1+INDEX(Data!$T:$T,MATCH(Sheet1!$N$2,Data!$R:$R,0)))","v":"Number of circuits"},null,null,{"$f":"INDEX(Dictionary!$1:$1048576,53,1+INDEX(Data!$T:$T,MATCH(Sheet1!$N$2,Data!$R:$R,0)))","v":"input #1"},null,null,{"$f":"INDEX(Dictionary!$1:$1048576,54,1+INDEX(Data!$T:$T,MATCH(Sheet1!$N$2,Data!$R:$R,0)))","v":"input #2"},null,null,{"$f":"INDEX(Dictionary!$1:$1048576,55,1+INDEX(Data!$T:$T,MATCH(Sheet1!$N$2,Data!$R:$R,0)))","v":"input #3"}]
[null,null,{"$f":"INDEX(Dictionary!$1:$1048576,47,1+INDEX(Data!$T:$T,MATCH(Sheet1!$N$2,Data!$R:$R,0)))","v":"Cooling capacity"},{"$f":"INDEX(Dictionary!$1:$1048576,52,1+INDEX(Data!$T:$T,MATCH(Sheet1!$N$2,Data!$R:$R,0)))","v":"or ↘"},null,{"$f":"INDEX(Dictionary!$1:$1048576,5,1+INDEX(Data!$T:$T,MATCH(Sheet1!$N$2,Data!$R:$R,0)))","v":"n/a"},{"$f":"INDEX(Dictionary!$1:$1048576,56,1+INDEX(Data!$T:$T,MATCH(Sheet1!$N$2,Data!$R:$R,0)))","v":"kW"},null,{"$f":"INDEX(Dictionary!$1:$1048576,5,1+INDEX(Data!$T:$T,MATCH(Sheet1!$N$2,Data!$R:$R,0)))","v":"n/a"},{"$f":"INDEX(Dictionary!$1:$1048576,56,1+INDEX(Data!$T:$T,MATCH(Sheet1!$N$2,Data!$R:$R,0)))","v":"kW"},null,{"$f":"INDEX(Dictionary!$1:$1048576,5,1+INDEX(Data!$T:$T,MATCH(Sheet1!$N$2,Data!$R:$R,0)))","v":"n/a"},{"$f":"INDEX(Dictionary!$1:$1048576,56,1+INDEX(Data!$T:$T,MATCH(Sheet1!$N$2,Data!$R:$R,0)))","v":"kW"}]
[null,null,{"$f":"INDEX(Dictionary!$1:$1048576,48,1+INDEX(Data!$T:$T,MATCH(Sheet1!$N$2,Data!$R:$R,0)))","v":"Mass flow "},null,null,{"$f":"INDEX(Dictionary!$1:$1048576,5,1+INDEX(Data!$T:$T,MATCH(Sheet1!$N$2,Data!$R:$R,0)))","v":"n/a"},{"$f":"INDEX(Dictionary!$1:$1048576,57,1+INDEX(Data!$T:$T,MATCH(Sheet1!$N$2,Data!$R:$R,0)))","v":"kg/h"},null,{"$f":"INDEX(Dictionary!$1:$1048576,5,1+INDEX(Data!$T:$T,MATCH(Sheet1!$N$2,Data!$R:$R,0)))","v":"n/a"},{"$f":"INDEX(Dictionary!$1:$1048576,57,1+INDEX(Data!$T:$T,MATCH(Sheet1!$N$2,Data!$R:$R,0)))","v":"kg/h"},null,{"$f":"INDEX(Dictionary!$1:$1048576,5,1+INDEX(Data!$T:$T,MATCH(Sheet1!$N$2,Data!$R:$R,0)))","v":"n/a"},{"$f":"INDEX(Dictionary!$1:$1048576,57,1+INDEX(Data!$T:$T,MATCH(Sheet1!$N$2,Data!$R:$R,0)))","v":"kg/h"}]
[null,null,{"$f":"INDEX(Dictionary!$1:$1048576,49,1+INDEX(Data!$T:$T,MATCH(Sheet1!$N$2,Data!$R:$R,0)))","v":"Tevap."},null,null,{"$f":"INDEX(Dictionary!$1:$1048576,5,1+INDEX(Data!$T:$T,MATCH(Sheet1!$N$2,Data!$R:$R,0)))","v":"n/a"},{"$f":"INDEX(Dictionary!$1:$1048576,37,1+INDEX(Data!$T:$T,MATCH(Sheet1!$N$2,Data!$R:$R,0)))","v":"°C"},null,{"$f":"INDEX(Dictionary!$1:$1048576,5,1+INDEX(Data!$T:$T,MATCH(Sheet1!$N$2,Data!$R:$R,0)))","v":"n/a"},{"$f":"INDEX(Dictionary!$1:$1048576,37,1+INDEX(Data!$T:$T,MATCH(Sheet1!$N$2,Data!$R:$R,0)))","v":"°C"},null,{"$f":"INDEX(Dictionary!$1:$1048576,5,1+INDEX(Data!$T:$T,MATCH(Sheet1!$N$2,Data!$R:$R,0)))","v":"n/a"},{"$f":"INDEX(Dictionary!$1:$1048576,37,1+INDEX(Data!$T:$T,MATCH(Sheet1!$N$2,Data!$R:$R,0)))","v":"°C"}]
[null,null,{"$f":"INDEX(Dictionary!$1:$1048576,50,1+INDEX(Data!$T:$T,MATCH(Sheet1!$N$2,Data!$R:$R,0)))","v":"Tcond."},null,null,{"$f":"INDEX(Dictionary!$1:$1048576,5,1+INDEX(Data!$T:$T,MATCH(Sheet1!$N$2,Data!$R:$R,0)))","v":"n/a"},{"$f":"INDEX(Dictionary!$1:$1048576,37,1+INDEX(Data!$T:$T,MATCH(Sheet1!$N$2,Data!$R:$R,0)))","v":"°C"},null,{"$f":"INDEX(Dictionary!$1:$1048576,5,1+INDEX(Data!$T:$T,MATCH(Sheet1!$N$2,Data!$R:$R,0)))","v":"n/a"},{"$f":"INDEX(Dictionary!$1:$1048576,37,1+INDEX(Data!$T:$T,MATCH(Sheet1!$N$2,Data!$R:$R,0)))","v":"°C"},null,{"$f":"INDEX(Dictionary!$1:$1048576,5,1+INDEX(Data!$T:$T,MATCH(Sheet1!$N$2,Data!$R:$R,0)))","v":"n/a"},{"$f":"INDEX(Dictionary!$1:$1048576,37,1+INDEX(Data!$T:$T,MATCH(Sheet1!$N$2,Data!$R:$R,0)))","v":"°C"}]
[null,null,{"$f":"INDEX(Dictionary!$1:$1048576,51,1+INDEX(Data!$T:$T,MATCH(Sheet1!$N$2,Data!$R:$R,0)))","v":"Refrigerant"},null,null,"<select>",null,null,"<select>",null,null,"<select>"]
[null,null,{"$f":"INDEX(Dictionary!$1:$1048576,58,1+INDEX(Data!$T:$T,MATCH(Sheet1!$N$2,Data!$R:$R,0)))","v":"Heat exchanger design in tank"},null,null,{"$f":"INDEX(Dictionary!$1:$1048576,59,1+INDEX(Data!$T:$T,MATCH(Sheet1!$N$2,Data!$R:$R,0)))","v":"in-built"},null,null,{"$f":"INDEX(Dictionary!$1:$1048576,59,1+INDEX(Data!$T:$T,MATCH(Sheet1!$N$2,Data!$R:$R,0)))","v":"in-built"},null,null,{"$f":"INDEX(Dictionary!$1:$1048576,59,1+INDEX(Data!$T:$T,MATCH(Sheet1!$N$2,Data!$R:$R,0)))","v":"in-built"}]
[null,null,null,null,null,{"$f":"INDEX(Dictionary!$1:$1048576,60,1+INDEX(Data!$T:$T,MATCH(Sheet1!$N$2,Data!$R:$R,0)))","v":"external"},null,null,{"$f":"INDEX(Dictionary!$1:$1048576,60,1+INDEX(Data!$T:$T,MATCH(Sheet1!$N$2,Data!$R:$R,0)))","v":"external"},null,null,{"$f":"INDEX(Dictionary!$1:$1048576,60,1+INDEX(Data!$T:$T,MATCH(Sheet1!$N$2,Data!$R:$R,0)))","v":"external"}]
[]
[null,{"$f":"INDEX(Dictionary!$1:$1048576,61,1+INDEX(Data!$T:$T,MATCH(Sheet1!$N$2,Data!$R:$R,0)))","v":"Additional coil (available in combi tanks only)"}]
[]
[null,null,{"$f":"INDEX(Dictionary!$1:$1048576,62,1+INDEX(Data!$T:$T,MATCH(Sheet1!$N$2,Data!$R:$R,0)))","v":"Purpose"},null,null,"<select>"]
[null,null,{"$f":"INDEX(Dictionary!$1:$1048576,63,1+INDEX(Data!$T:$T,MATCH(Sheet1!$N$2,Data!$R:$R,0)))","v":"Capacity"},null,null,{"$f":"INDEX(Dictionary!$1:$1048576,5,1+INDEX(Data!$T:$T,MATCH(Sheet1!$N$2,Data!$R:$R,0)))","v":"n/a"},{"$f":"INDEX(Dictionary!$1:$1048576,56,1+INDEX(Data!$T:$T,MATCH(Sheet1!$N$2,Data!$R:$R,0)))","v":"kW"},{"$f":"INDEX(Dictionary!$1:$1048576,119,1+INDEX(Data!$T:$T,MATCH(Sheet1!$N$2,Data!$R:$R,0)))","v":"or"},{"$f":"INDEX(Dictionary!$1:$1048576,5,1+INDEX(Data!$T:$T,MATCH(Sheet1!$N$2,Data!$R:$R,0)))","v":"n/a"},{"$f":"INDEX(Dictionary!$1:$1048576,35,1+INDEX(Data!$T:$T,MATCH(Sheet1!$N$2,Data!$R:$R,0)))","v":"ltr./hour"}]
[null,null,{"$f":"INDEX(Dictionary!$1:$1048576,64,1+INDEX(Data!$T:$T,MATCH(Sheet1!$N$2,Data!$R:$R,0)))","v":"Fluid (%)"},null,null,"<select>",null,null,100,{"$f":"INDEX(Dictionary!$1:$1048576,36,1+INDEX(Data!$T:$T,MATCH(Sheet1!$N$2,Data!$R:$R,0)))","v":"%"}]
[null,null,{"$f":"INDEX(Dictionary!$1:$1048576,65,1+INDEX(Data!$T:$T,MATCH(Sheet1!$N$2,Data!$R:$R,0)))","v":"Design temperatures"},null,{"$f":"INDEX(Dictionary!$1:$1048576,38,1+INDEX(Data!$T:$T,MATCH(Sheet1!$N$2,Data!$R:$R,0)))","v":"in:"},{"$f":"INDEX(Dictionary!$1:$1048576,5,1+INDEX(Data!$T:$T,MATCH(Sheet1!$N$2,Data!$R:$R,0)))","v":"n/a"},{"$f":"INDEX(Dictionary!$1:$1048576,37,1+INDEX(Data!$T:$T,MATCH(Sheet1!$N$2,Data!$R:$R,0)))","v":"°C"},{"$f":"INDEX(Dictionary!$1:$1048576,39,1+INDEX(Data!$T:$T,MATCH(Sheet1!$N$2,Data!$R:$R,0)))","v":"out:"},{"$f":"INDEX(Dictionary!$1:$1048576,5,1+INDEX(Data!$T:$T,MATCH(Sheet1!$N$2,Data!$R:$R,0)))","v":"n/a"},{"$f":"INDEX(Dictionary!$1:$1048576,37,1+INDEX(Data!$T:$T,MATCH(Sheet1!$N$2,Data!$R:$R,0)))","v":"°C"}]
[null,null,{"$f":"INDEX(Dictionary!$1:$1048576,66,1+INDEX(Data!$T:$T,MATCH(Sheet1!$N$2,Data!$R:$R,0)))","v":"Surface area"},null,null,{"$f":"INDEX(Dictionary!$1:$1048576,5,1+INDEX(Data!$T:$T,MATCH(Sheet1!$N$2,Data!$R:$R,0)))","v":"n/a"},{"$f":"INDEX(Dictionary!$1:$1048576,67,1+INDEX(Data!$T:$T,MATCH(Sheet1!$N$2,Data!$R:$R,0)))","v":"m^2"}]
[null,null,{"$f":"INDEX(Dictionary!$1:$1048576,32,1+INDEX(Data!$T:$T,MATCH(Sheet1!$N$2,Data!$R:$R,0)))","v":"Max. working pressure (Pmax.)"},null,null,null,null,null,"12 bar",{"$f":"INDEX(Dictionary!$1:$1048576,68,1+INDEX(Data!$T:$T,MATCH(Sheet1!$N$2,Data!$R:$R,0)))","v":"@ +20°C"}]
[]
[null,{"$f":"INDEX(Dictionary!$1:$1048576,69,1+INDEX(Data!$T:$T,MATCH(Sheet1!$N$2,Data!$R:$R,0)))","v":"Additional options (value added)"}]
[]
[null,null,{"$f":"INDEX(Dictionary!$1:$1048576,120,1+INDEX(Data!$T:$T,MATCH(Sheet1!$N$2,Data!$R:$R,0)))","v":"3 kW"},{"$f":"INDEX(Dictionary!$1:$1048576,70,1+INDEX(Data!$T:$T,MATCH(Sheet1!$N$2,Data!$R:$R,0)))","v":"– 3~400V, IP54 immersion electric heater with integrated thermostat"},null,null,null,null,null,null,null,{"$f":"INDEX(Dictionary!$1:$1048576,133,1+INDEX(Data!$T:$T,MATCH(Sheet1!$N$2,Data!$R:$R,0)))","v":"qty."},{"$f":"INDEX(Dictionary!$1:$1048576,5,1+INDEX(Data!$T:$T,MATCH(Sheet1!$N$2,Data!$R:$R,0)))","v":"n/a"},null,{"$f":"INDEX(Dictionary!$1:$1048576,134,1+INDEX(Data!$T:$T,MATCH(Sheet1!$N$2,Data!$R:$R,0)))","v":"pcs."}]
[null,null,{"$f":"INDEX(Dictionary!$1:$1048576,121,1+INDEX(Data!$T:$T,MATCH(Sheet1!$N$2,Data!$R:$R,0)))","v":"6 kW"},{"$f":"INDEX(Dictionary!$1:$1048576,71,1+INDEX(Data!$T:$T,MATCH(Sheet1!$N$2,Data!$R:$R,0)))","v":"– 3~400V, IP54 immersion electric heater with integrated thermostat"},null,null,null,null,null,null,null,{"$f":"INDEX(Dictionary!$1:$1048576,133,1+INDEX(Data!$T:$T,MATCH(Sheet1!$N$2,Data!$R:$R,0)))","v":"qty."},{"$f":"INDEX(Dictionary!$1:$1048576,5,1+INDEX(Data!$T:$T,MATCH(Sheet1!$N$2,Data!$R:$R,0)))","v":"n/a"},null,{"$f":"INDEX(Dictionary!$1:$1048576,134,1+INDEX(Data!$T:$T,MATCH(Sheet1!$N$2,Data!$R:$R,0)))","v":"pcs."}]
[null,null,{"$f":"INDEX(Dictionary!$1:$1048576,122,1+INDEX(Data!$T:$T,MATCH(Sheet1!$N$2,Data!$R:$R,0)))","v":"9 kW"},{"$f":"INDEX(Dictionary!$1:$1048576,72,1+INDEX(Data!$T:$T,MATCH(Sheet1!$N$2,Data!$R:$R,0)))","v":"– 3~400V, IP54 immersion electric heater with integrated thermostat"},null,null,null,null,null,null,null,{"$f":"INDEX(Dictionary!$1:$1048576,133,1+INDEX(Data!$T:$T,MATCH(Sheet1!$N$2,Data!$R:$R,0)))","v":"qty."},{"$f":"INDEX(Dictionary!$1:$1048576,5,1+INDEX(Data!$T:$T,MATCH(Sheet1!$N$2,Data!$R:$R,0)))","v":"n/a"},null,{"$f":"INDEX(Dictionary!$1:$1048576,134,1+INDEX(Data!$T:$T,MATCH(Sheet1!$N$2,Data!$R:$R,0)))","v":"pcs."}]
[null,null,{"$f":"INDEX(Dictionary!$1:$1048576,124,1+INDEX(Data!$T:$T,MATCH(Sheet1!$N$2,Data!$R:$R,0)))","v":"AK"},{"$f":"INDEX(Dictionary!$1:$1048576,74,1+INDEX(Data!$T:$T,MATCH(Sheet1!$N$2,Data!$R:$R,0)))","v":"– accessories kit for CS/HS/DS/CT/HR series buffer tanks "}]
[null,null,{"$f":"INDEX(Dictionary!$1:$1048576,125,1+INDEX(Data!$T:$T,MATCH(Sheet1!$N$2,Data!$R:$R,0)))","v":"ICCP"},{"$f":"INDEX(Dictionary!$1:$1048576,75,1+INDEX(Data!$T:$T,MATCH(Sheet1!$N$2,Data!$R:$R,0)))","v":"–  Impressed Current Cathodic Protection (ICCP) System against corrosion"}]
[null,null,{"$f":"INDEX(Dictionary!$1:$1048576,126,1+INDEX(Data!$T:$T,MATCH(Sheet1!$N$2,Data!$R:$R,0)))","v":"A module/WRP"},{"$f":"INDEX(Dictionary!$1:$1048576,76,1+INDEX(Data!$T:$T,MATCH(Sheet1!$N$2,Data!$R:$R,0)))","v":"– cold water replenishment unit according EN1717 & EN12897"}]
[null,null,{"$f":"INDEX(Dictionary!$1:$1048576,127,1+INDEX(Data!$T:$T,MATCH(Sheet1!$N$2,Data!$R:$R,0)))","v":"LP"},{"$f":"INDEX(Dictionary!$1:$1048576,77,1+INDEX(Data!$T:$T,MATCH(Sheet1!$N$2,Data!$R:$R,0)))","v":"–  legionella protection unit "}]
[null,null,{"$f":"INDEX(Dictionary!$1:$1048576,128,1+INDEX(Data!$T:$T,MATCH(Sheet1!$N$2,Data!$R:$R,0)))","v":"ZN"},{"$f":"INDEX(Dictionary!$1:$1048576,78,1+INDEX(Data!$T:$T,MATCH(Sheet1!$N$2,Data!$R:$R,0)))","v":"– galvanized steel sheet cover (suitable for installation outdoor)"}]
[null,null,{"$f":"INDEX(Dictionary!$1:$1048576,129,1+INDEX(Data!$T:$T,MATCH(Sheet1!$N$2,Data!$R:$R,0)))","v":"AISI"},{"$f":"INDEX(Dictionary!$1:$1048576,79,1+INDEX(Data!$T:$T,MATCH(Sheet1!$N$2,Data!$R:$R,0)))","v":"– polished and brushed AISI304 stainless steel sheet cover (suitable for installation outdoor)"}]
[null,null,{"$f":"INDEX(Dictionary!$1:$1048576,130,1+INDEX(Data!$T:$T,MATCH(Sheet1!$N$2,Data!$R:$R,0)))","v":"MH380"},{"$f":"INDEX(Dictionary!$1:$1048576,80,1+INDEX(Data!$T:$T,MATCH(Sheet1!$N$2,Data!$R:$R,0)))","v":"– ∅380  additional inspection flange in the front side  (we recommend)"}]
[null,null,{"$f":"INDEX(Dictionary!$1:$1048576,131,1+INDEX(Data!$T:$T,MATCH(Sheet1!$N$2,Data!$R:$R,0)))","v":"MH430"},{"$f":"INDEX(Dictionary!$1:$1048576,81,1+INDEX(Data!$T:$T,MATCH(Sheet1!$N$2,Data!$R:$R,0)))","v":"– ∅430  additional inspection flange in the front side (we recommend)"}]
[null,null,{"$f":"INDEX(Dictionary!$1:$1048576,82,1+INDEX(Data!$T:$T,MATCH(Sheet1!$N$2,Data!$R:$R,0)))","v":"Expansion vessel"},{"$f":"INDEX(Dictionary!$1:$1048576,132,1+INDEX(Data!$T:$T,MATCH(Sheet1!$N$2,Data!$R:$R,0)))","v":"– replaceable membrane expansion vessel"}]
[null,null,null,null,null,null,null,null,null,null,null,{"$f":"INDEX(Dictionary!$1:$1048576,85,1+INDEX(Data!$T:$T,MATCH(Sheet1!$N$2,Data!$R:$R,0)))","v":"volume:"},{"$f":"INDEX(Dictionary!$1:$1048576,5,1+INDEX(Data!$T:$T,MATCH(Sheet1!$N$2,Data!$R:$R,0)))","v":"n/a"},null,{"$f":"INDEX(Dictionary!$1:$1048576,40,1+INDEX(Data!$T:$T,MATCH(Sheet1!$N$2,Data!$R:$R,0)))","v":"ltr."}]
[]
[null,null,{"$f":"INDEX(Dictionary!$1:$1048576,84,1+INDEX(Data!$T:$T,MATCH(Sheet1!$N$2,Data!$R:$R,0)))","v":"Mandatory fields - these fields are required"}]
[]
[null,{"$f":"INDEX(Dictionary!$1:$1048576,87,1+INDEX(Data!$T:$T,MATCH(Sheet1!$N$2,Data!$R:$R,0)))","v":"NOTES"}]

{"sheet":"Data","index":1,"n_rows":17,"n_cols":26,"rows_kept":17,"cut":false,"hidden":false,"merged":[]}
[null,null,null,null,null,null,null,null,null,null,null,null,null,null,null,null,null,null,{"$f":"\"Data!R2:\"&\"R\"&(1+$S$2)","v":"Data!R2:R3"},null,null,null,null,3]
[null,{"$f":"INDEX(Dictionary!$1:$1048576,88,1+INDEX(Data!$T:$T,MATCH(Sheet1!$N$2,Data!$R:$R,0)))","v":"<select>"},null,null,{"$f":"INDEX(Dictionary!$1:$1048576,94,1+INDEX(Data!$T:$T,MATCH(Sheet1!$N$2,Data!$R:$R,0)))","v":"domestic water preheating"},null,null,{"$f":"INDEX(Dictionary!$1:$1048576,88,1+INDEX(Data!$T:$T,MATCH(Sheet1!$N$2,Data!$R:$R,0)))","v":"<select>"},null,null,null,{"$f":"INDEX(Dictionary!$1:$1048576,88,1+INDEX(Data!$T:$T,MATCH(Sheet1!$N$2,Data!$R:$R,0)))","v":"<select>"},null,{"$f":"INDEX(Dictionary!$1:$1048576,88,1+INDEX(Data!$T:$T,MATCH(Sheet1!$N$2,Data!$R:$R,0)))","v":"<select>"},null,{"$f":"INDEX(Dictionary!$1:$1048576,88,1+INDEX(Data!$T:$T,MATCH(Sheet1!$N$2,Data!$R:$R,0)))","v":"<select>"},null,"[EN]",{"$f":"COUNTA($R:$R)","v":2},1,null,null,null,null,null,"=INDEX(Dictionary!$1:$1048576;1;1+INDEX(Data!$T:$T;MATCH(Sheet1!$N$2;Data!$R:$R;0)))"]
[null,{"$f":"INDEX(Dictionary!$1:$1048576,89,1+INDEX(Data!$T:$T,MATCH(Sheet1!$N$2,Data!$R:$R,0)))","v":"domestic water"},null,null,{"$f":"INDEX(Dictionary!$1:$1048576,95,1+INDEX(Data!$T:$T,MATCH(Sheet1!$N$2,Data!$R:$R,0)))","v":"solar coil"},null,null,{"$f":"INDEX(Dictionary!$1:$1048576,94,1+INDEX(Data!$T:$T,MATCH(Sheet1!$N$2,Data!$R:$R,0)))","v":"domestic water preheating"},null,null,null,{"$f":"INDEX(Dictionary!$1:$1048576,101,1+INDEX(Data!$T:$T,MATCH(Sheet1!$N$2,Data!$R:$R,0)))","v":"Propane (R290)"},null,100,null,{"$f":"INDEX(Dictionary!$1:$1048576,115,1+INDEX(Data!$T:$T,MATCH(Sheet1!$N$2,Data!$R:$R,0)))","v":"S235JRG2 (1.0038) carbon steel outside painted "},null,"[RU]",{"$f":"INDIRECT(S1)","v":"[RU]"},2]
[null,{"$f":"INDEX(Dictionary!$1:$1048576,90,1+INDEX(Data!$T:$T,MATCH(Sheet1!$N$2,Data!$R:$R,0)))","v":"water"},null,null,{"$f":"INDEX(Dictionary!$1:$1048576,96,1+INDEX(Data!$T:$T,MATCH(Sheet1!$N$2,Data!$R:$R,0)))","v":"heat pump coil"},null,null,{"$f":"INDEX(Dictionary!$1:$1048576,99,1+INDEX(Data!$T:$T,MATCH(Sheet1!$N$2,Data!$R:$R,0)))","v":"heating water heating (additional user)"},null,null,null,{"$f":"INDEX(Dictionary!$1:$1048576,102,1+INDEX(Data!$T:$T,MATCH(Sheet1!$N$2,Data!$R:$R,0)))","v":"R134A"},null,150,null,{"$f":"INDEX(Dictionary!$1:$1048576,116,1+INDEX(Data!$T:$T,MATCH(Sheet1!$N$2,Data!$R:$R,0)))","v":"AISI304 (1.4301) stainless steel"},null,null,null,3]
[null,{"$f":"INDEX(Dictionary!$1:$1048576,91,1+INDEX(Data!$T:$T,MATCH(Sheet1!$N$2,Data!$R:$R,0)))","v":"ethylene glycol - water"},null,null,{"$f":"INDEX(Dictionary!$1:$1048576,97,1+INDEX(Data!$T:$T,MATCH(Sheet1!$N$2,Data!$R:$R,0)))","v":"floor heating"},null,null,{"$f":"INDEX(Dictionary!$1:$1048576,100,1+INDEX(Data!$T:$T,MATCH(Sheet1!$N$2,Data!$R:$R,0)))","v":"heating coil (additional heat source)"},null,null,null,{"$f":"INDEX(Dictionary!$1:$1048576,103,1+INDEX(Data!$T:$T,MATCH(Sheet1!$N$2,Data!$R:$R,0)))","v":"R404A"},null,200,null,{"$f":"INDEX(Dictionary!$1:$1048576,117,1+INDEX(Data!$T:$T,MATCH(Sheet1!$N$2,Data!$R:$R,0)))","v":"AISI316L (1.4404) stainless steel"},null,null,null,4]
[null,{"$f":"INDEX(Dictionary!$1:$1048576,92,1+INDEX(Data!$T:$T,MATCH(Sheet1!$N$2,Data!$R:$R,0)))","v":"propylene glycol - water"},null,null,{"$f":"INDEX(Dictionary!$1:$1048576,98,1+INDEX(Data!$T:$T,MATCH(Sheet1!$N$2,Data!$R:$R,0)))","v":"defrost"},null,null,null,null,null,null,{"$f":"INDEX(Dictionary!$1:$1048576,104,1+INDEX(Data!$T:$T,MATCH(Sheet1!$N$2,Data!$R:$R,0)))","v":"R410A"},null,300,null,null,null,null,null,5]
[null,{"$f":"INDEX(Dictionary!$1:$1048576,93,1+INDEX(Data!$T:$T,MATCH(Sheet1!$N$2,Data!$R:$R,0)))","v":"other"},null,null,null,null,null,null,null,null,null,{"$f":"INDEX(Dictionary!$1:$1048576,105,1+INDEX(Data!$T:$T,MATCH(Sheet1!$N$2,Data!$R:$R,0)))","v":"R22"},null,500]
[null,null,null,null,null,null,null,null,null,null,null,{"$f":"INDEX(Dictionary!$1:$1048576,106,1+INDEX(Data!$T:$T,MATCH(Sheet1!$N$2,Data!$R:$R,0)))","v":"R407A"},null,600]
[null,null,null,null,null,null,null,null,null,null,null,{"$f":"INDEX(Dictionary!$1:$1048576,107,1+INDEX(Data!$T:$T,MATCH(Sheet1!$N$2,Data!$R:$R,0)))","v":"R407C"},null,800]
[null,null,null,null,null,null,null,null,null,null,null,{"$f":"INDEX(Dictionary!$1:$1048576,108,1+INDEX(Data!$T:$T,MATCH(Sheet1!$N$2,Data!$R:$R,0)))","v":"R407F"},null,1000]
[null,null,null,null,null,null,null,null,null,null,null,{"$f":"INDEX(Dictionary!$1:$1048576,109,1+INDEX(Data!$T:$T,MATCH(Sheet1!$N$2,Data!$R:$R,0)))","v":"R407H"},null,1500]
[null,null,null,null,null,null,null,null,null,null,null,{"$f":"INDEX(Dictionary!$1:$1048576,110,1+INDEX(Data!$T:$T,MATCH(Sheet1!$N$2,Data!$R:$R,0)))","v":"R448A"},null,2000]
[null,null,null,null,null,null,null,null,null,null,null,{"$f":"INDEX(Dictionary!$1:$1048576,111,1+INDEX(Data!$T:$T,MATCH(Sheet1!$N$2,Data!$R:$R,0)))","v":"R449A"},null,2500]
[null,null,null,null,null,null,null,null,null,null,null,{"$f":"INDEX(Dictionary!$1:$1048576,112,1+INDEX(Data!$T:$T,MATCH(Sheet1!$N$2,Data!$R:$R,0)))","v":"R507A"},null,3000]
[null,null,null,null,null,null,null,null,null,null,null,{"$f":"INDEX(Dictionary!$1:$1048576,113,1+INDEX(Data!$T:$T,MATCH(Sheet1!$N$2,Data!$R:$R,0)))","v":"R513A"},null,4000]
[null,null,null,null,null,null,null,null,null,null,null,{"$f":"INDEX(Dictionary!$1:$1048576,114,1+INDEX(Data!$T:$T,MATCH(Sheet1!$N$2,Data!$R:$R,0)))","v":"R1234ze"},null,5000]
[null,null,null,null,null,null,null,null,null,null,null,{"$f":"INDEX(Dictionary!$1:$1048576,93,1+INDEX(Data!$T:$T,MATCH(Sheet1!$N$2,Data!$R:$R,0)))","v":"other"},null,{"$f":"INDEX(Dictionary!$1:$1048576,93,1+INDEX(Data!$T:$T,MATCH(Sheet1!$N$2,Data!$R:$R,0)))","v":"other"}]

{"sheet":"Dictionary","index":2,"n_rows":300,"n_cols":3,"rows_kept":300,"cut":false,"hidden":false,"merged":[]}
[1,"Heat recovery system quotation request","Запрос системы по отбору тепла"]
[2,"(please sent filled questionnaire to your regional sales manager)","(отправьте заполненную анкету менеджеру по продажам в вашем регионе)"]
[3,"Project name: ","Название проекта:"]
[4,"Customer: ","Заказчик:"]
[5,"n/a","н/д"]
[6,"Design priority:","Приоритет:"]
[7,"Application:","Применение:"]
[8,"Price","Цена"]
[9,"Domestic water heating ","Бытовое отопление водой"]
[10,"Heating (technical) water heating","Техническое отопление водой"]
[11,"Domestic and heating water heating (combi systems)","Бытовое и техническое отопление (комбинированные системы)"]
[12,"Efficiency (recover as much heat as possible)","Эффективность (максимально возможный отбор тепла)"]
[13,"Design conditions","Проектировочные условия"]
[14,"Restrictions for installation (max.):","Габаритные ограничения (макс.):"]
[15,"Installation","Установка"]
[16,"Position","Ориентация"]
[17,"L","Д"]
[18,"mm      x","мм      х"]
[19,"W","Ш"]
[20,"H","В"]
[21,"indoors","в помещении"]
[22,"vertical","вертикальная"]
[23,"outdoors","на открытом воздухе"]
[24,"horizontal","горизонтальная"]
[25,"Tank","Бак"]
[26,"Approx. hot water consumption","Прибл. расход горячей воды"]
[27,"Peak consumption of hot water","Пиковый расход горячей воды"]
[28,"Fluid (%)","Жидкость (%)"]
[29,"Fluid temperatures","Температура жидкости"]
[30,"Buffer tank volume","Объем накопительного бака"]
[31,"Material","Материал"]
[32,"Max. working pressure (Pmax.)","Макс. Рабочее давление (Pmax.)"]
[33,"Insulation","Изоляция"]
[34,"ltr./day","л / сут"]
[35,"ltr./hour","л / ч"]
[36,"%","%"]
[37,"°C","°C"]
[38,"in:","вход:"]
[39,"out:","выход:"]
[40,"ltr.","л"]
[41,"6 bar","6 бар"]
[42,"None","Нету"]
[43,"10 bar","10 бар"]
[44,"100 mm soft PU foam covered with PVC jacket","100 мм мягкая ПУ пена, покрытая ПВХ оболочкой"]
[45,"Refrigeration circuit","Холодильный контур"]
[46,"Number of circuits","Количество контуров"]
[47,"Cooling capacity","Холодопроизводительность"]
[48,"Mass flow ","Массовый расход"]
[49,"Tevap.","Темп. Испарения"]
[50,"Tcond.","Темп. Конденсации"]
[51,"Refrigerant","Хладагент"]
[52,"or ↘","или ↘"]
[53,"input #1","ввод #1"]
[54,"input #2","ввод #2"]
[55,"input #3","ввод #3"]
[56,"kW","кВт"]
[57,"kg/h","кг/ч"]
[58,"Heat exchanger design in tank","Исполнение теплообменника в баке"]
[59,"in-built","встроенный"]
[60,"external","внешний"]
[61,"Additional coil (available in combi tanks only)","Дополнительный радиатор (доступно только для комбинированных баков)"]
[62,"Purpose","Назначение"]
[63,"Capacity","Производительность"]
[64,"Fluid (%)","Жидкость (%)"]
[65,"Design temperatures","Расчетные температуры"]
[66,"Surface area","Площадь поверхности"]
[67,"m^2","м^2"]
[68,"@ +20°C","@ +20°C"]
[69,"Additional options (value added)","Дополнительные опции (добавленная стоимость)"]
[70,"– 3~400V, IP54 immersion electric heater with integrated thermostat","– 3~400V, IP54 погружной электрический нагреватель со встроенным термостатом"]
[71,"– 3~400V, IP54 immersion electric heater with integrated thermostat","– 3~400V, IP54 погружной электрический нагреватель со встроенным термостатом"]
[72,"– 3~400V, IP54 immersion electric heater with integrated thermostat","– 3~400V, IP54 погружной электрический нагреватель со встроенным термостатом"]
[73,"– 3~400V, IP54 immersion electric heater with integrated thermostat","– 3~400V, IP54 погружной электрический нагреватель со встроенным термостатом"]
[74,"– accessories kit for CS/HS/DS/CT/HR series buffer tanks ","– комплект принадлежностей для буферных баков серии CS / HS / DS / CT / HR"]
[75,"–  Impressed Current Cathodic Protection (ICCP) System against corrosion","– система катодной защиты от перенапряжений (ICCP) от коррозии"]
[76,"– cold water replenishment unit according EN1717 & EN12897","– блок пополнения холодной воды в соответствии с EN1717 и EN12897"]
[77,"–  legionella protection unit ","– блок защиты от легионеллы"]
[78,"– galvanized steel sheet cover (suitable for installation outdoor)","– крышка из оцинкованного стального листа (подходит для наружной установки)"]
[79,"– polished and brushed AISI304 stainless steel sheet cover (suitable for installation outdoor)","– полированная и матовая крышка из нержавеющей стали AISI304 (подходит для наружной установки)"]
[80,"– ∅380  additional inspection flange in the front side  (we recommend)","– дополнительный смотровой фланец inspection380 на передней стороне (мы рекомендуем)"]
[81,"– ∅430  additional inspection flange in the front side (we recommend)","– дополнительный смотровой фланец inspection430 на передней стороне (мы рекомендуем)"]
[82,"Expansion vessel","Расширительный бак"]
[83,"(!)","(!)"]
[84,"Mandatory fields - these fields are required","Обязательные поля - эти поля обязательны для заполнения"]
[85,"volume:","объем:"]
[86,"n/d","н/д"]
[87,"NOTES","ЗАМЕТКИ"]
[88,"<select>","<выбор из списка>"]
[89,"domestic water","бытовая вода"]
[90,"water","вода"]
[91,"ethylene glycol - water","этиленгликоль - вода"]
[92,"propylene glycol - water","пропиленгликоль - вода"]
[93,"other","другой"]
[94,"domestic water preheating","подогрев воды для бытовых нужд"]
[95,"solar coil","солнечный радиатор"]
[96,"heat pump coil","радиатор теплового насоса"]
[97,"floor heating","подогрев пола"]
[98,"defrost","размораживание"]
[99,"heating water heating (additional user)","отопление водой (дополнительный потребитель)"]
[100,"heating coil (additional heat source)","отопительный радиатор (дополнительный источник тепла)"]
[101,"Propane (R290)","Пропан (R290)"]
[102,"R134A","R134A"]
[103,"R404A","R404A"]
[104,"R410A","R410A"]
[105,"R22","R22"]
[106,"R407A","R407A"]
[107,"R407C","R407C"]
[108,"R407F","R407F"]
[109,"R407H","R407H"]
[110,"R448A","R448A"]
[111,"R449A","R449A"]
[112,"R507A","R507A"]
[113,"R513A","R513A"]
[114,"R1234ze","R1234ze"]
[115,"S235JRG2 (1.0038) carbon steel outside painted ","S235JRG2 (1.0038) углеродистая сталь, окрашенная"]
[116,"AISI304 (1.4301) stainless steel","AISI304 (1.4301) нержавеющая сталь"]
[117,"AISI316L (1.4404) stainless steel","AISI316L (1.4404) нержавеющая сталь"]
[118,"mm","мм"]
[119,"or","или"]
[120,"3 kW","3 kW"]
[121,"6 kW","6 kW"]
[122,"9 kW","9 kW"]
[123,"12 (6+6) kW","12 (6+6) kW"]
[124,"AK","AK"]
[125,"ICCP","ICCP"]
[126,"A module/WRP","A module/WRP"]
[127,"LP","LP"]
[128,"ZN","ZN"]
[129,"AISI","AISI"]
[130,"MH380","MH380"]
[131,"MH430","MH430"]
[132,"– replaceable membrane expansion vessel","– сменный мембранный расширительный бак"]
[133,"qty.","кол-во"]
[134,"pcs.","шт."]
[135]
[136]
[137]
[138]
[139]
[140]
[141]
[142]
[143]
[144]
[145]
[146]
[147]
[148]
[149]
[150]
[151]
[152]
[153]
[154]
[155]
[156]
[157]
[158]
[159]
[160]
[161]
[162]
[163]
[164]
[165]
[166]
[167]
[168]
[169]
[170]
[171]
[172]
[173]
[174]
[175]
[176]
[177]
[178]
[179]
[180]
[181]
[182]
[183]
[184]
[185]
[186]
[187]
[188]
[189]
[190]
[191]
[192]
[193]
[194]
[195]
[196]
[197]
[198]
[199]
[200]
[201]
[202]
[203]
[204]
[205]
[206]
[207]
[208]
[209]
[210]
[211]
[212]
[213]
[214]
[215]
[216]
[217]
[218]
[219]
[220]
[221]
[222]
[223]
[224]
[225]
[226]
[227]
[228]
[229]
[230]
[231]
[232]
[233]
[234]
[235]
[236]
[237]
[238]
[239]
[240]
[241]
[242]
[243]
[244]
[245]
[246]
[247]
[248]
[249]
[250]
[251]
[252]
[253]
[254]
[255]
[256]
[257]
[258]
[259]
[260]
[261]
[262]
[263]
[264]
[265]
[266]
[267]
[268]
[269]
[270]
[271]
[272]
[273]
[274]
[275]
[276]
[277]
[278]
[279]
[280]
[281]
[282]
[283]
[284]
[285]
[286]
[287]
[288]
[289]
[290]
[291]
[292]
[293]
[294]
[295]
[296]
[297]
[298]
[299]
[300]